fUSD/lending_fUSD_20241207
["ID","MTS","AMOUNT","RATE_DAILY","PERIOD"]
[344528325,1733536319108,-500.0,0.00011231,2]
[344528326,1733536319118,-500.0,0.00011231,2]
[344528327,1733536319130,-738.72,0.00011231,2]
[344528328,1733536319140,-500.0,0.00011231,2]
[344528329,1733536319149,-500.0,0.00011231,2]
[344528330,1733536319158,-649.05066003,0.00011231,2]
[344528331,1733536319167,-1236.15,0.00011231,2]
[344528332,1733536319176,-918.81,0.00011231,2]
[344528333,1733536319186,-1259.46,0.00011231,2]
[344528334,1733536319196,-500.0,0.00011231,2]
[344528335,1733536319206,-961.29,0.00011231,2]
[344528336,1733536319215,-1580.55,0.00011231,2]
[344528337,1733536319226,-500.0,0.00011231,2]
[344528338,1733536319237,-500.0,0.00011231,2]
[344528339,1733536319247,-1658.82,0.00011231,2]
[344528340,1733536319258,-2076.32,0.00011231,2]
[344528341,1733536319268,-500.0,0.00011231,2]
[344528342,1733536319278,-500.0,0.00011231,2]
[344528343,1733536319288,-5834.62,0.00011231,2]
[344528344,1733536319297,-500.0,0.00011231,2]
[344528345,1733536319307,-315.85402087,0.00011231,2]
[344528346,1733536319317,-726.18,0.00011231,2]
[344528347,1733536319326,-636.56,0.00011231,2]
[344528348,1733536319335,-500.0,0.00011231,2]
[344528349,1733536319345,-500.0,0.00011231,2]
[344528350,1733536319355,-653.92,0.00011231,2]
[344528351,1733536319364,-1262.13,0.00011231,2]
[344528352,1733536319374,-985.05,0.00011231,2]
[344528353,1733536319388,-869.32,0.00011231,2]
[344528354,1733536319397,-908.51,0.00011231,2]
[344528355,1733536319407,-500.0,0.00011231,2]
[344528356,1733536319417,-500.0,0.00011231,2]
[344528357,1733536319427,-500.0,0.00011231,2]
[344528358,1733536319437,-500.0,0.00011232,2]
[344528359,1733536319447,-150.0,0.00011232,2]
[344528360,1733536319457,-500.0,0.00011232,2]
[344528361,1733536319466,-500.0,0.00011232,2]
[344528362,1733536319476,-1449.0,0.00011232,2]
[344528363,1733536319486,-500.0,0.00011232,2]
[344528364,1733536319496,-3618.33,0.00011232,2]
[344528365,1733536319505,-500.0,0.00011232,2]
[344528366,1733536319515,-990.12,0.00011232,2]
[344528367,1733536319524,-500.0,0.00011232,2]
[344528368,1733536319534,-500.0,0.00011232,2]
[344528369,1733536319543,-334.96202573,0.00011232,2]
[344528370,1733536319552,-1010.91,0.00011232,2]
[344528371,1733536319561,-500.0,0.00011232,2]
[344528372,1733536319570,-1180.33,0.00011232,2]
[344528373,1733536319580,-500.0,0.00011232,2]
[344528374,1733536319589,-637.63,0.00011232,2]
[344528375,1733536319598,-903.24,0.00011232,2]
[344528376,1733536319607,-1081.3,0.00011232,2]
[344528377,1733536319617,-1231.81,0.00011232,2]
[344528378,1733536319631,-1080.58,0.00011232,2]
[344528379,1733536319640,-500.0,0.00011232,2]
[344528380,1733536319650,-2311.91,0.00011232,2]
[344528381,1733536319660,-500.0,0.00011232,2]
[344528382,1733536319670,-1160.55,0.00011232,2]
[344528383,1733536319679,-372.48741747,0.00011232,2]
[344528384,1733536319689,-553.68,0.00011232,2]
[344528385,1733536319699,-500.0,0.00011232,2]
[344528386,1733536319708,-692.9,0.00011232,2]
[344528387,1733536319718,-500.0,0.00011232,2]
[344528388,1733536319728,-1316.86,0.00011232,2]
[344528389,1733536319738,-945.34,0.00011232,2]
[344528390,1733536319748,-500.0,0.00011232,2]
[344528391,1733536319758,-865.87,0.00011232,2]
[344528392,1733536319767,-500.0,0.00011232,2]
[344528393,1733536319777,-2197.67,0.00011232,2]
[344528394,1733536319786,-1705.69,0.00011232,2]
[344528395,1733536319796,-1267.06,0.00011232,2]
[344528396,1733536319805,-1414.49,0.00011232,2]
[344528397,1733536319814,-1616.63,0.00011232,2]
[344528398,1733536319823,-2472.9,0.00011232,2]
[344528399,1733536319833,-1973.18,0.00011232,2]
[344528400,1733536319843,-1808.78,0.00011232,2]
[344528401,1733536319852,-765.64,0.00011232,2]
[344528402,1733536319861,-1450.65,0.00011232,2]
[344528403,1733536319870,-1036.41,0.00011232,2]
[344528404,1733536319886,-1048.28,0.00011232,2]
[344528405,1733536319896,-1201.84,0.00011232,2]
[344528406,1733536319905,-593.82,0.00011232,2]
[344528407,1733536319915,-500.0,0.00011232,2]
[344528408,1733536319924,-500.0,0.00011232,2]
[344528409,1733536319933,-875.63,0.00011232,2]
[344528410,1733536319943,-863.77,0.00011232,2]
[344528411,1733536319953,-935.91,0.00011232,2]
[344528412,1733536319962,-500.0,0.00011232,2]
[344528413,1733536319972,-1027.36,0.00011232,2]
[344528414,1733536319982,-804.35,0.00011232,2]
[344528415,1733536319991,-1311.72,0.00011232,2]
[344528416,1733536320001,-819.23,0.00011232,2]
[344528417,1733536320013,-1315.73,0.00011232,2]
[344528418,1733536320023,-960.54,0.00011232,2]
[344528419,1733536320032,-1551.33,0.00011232,2]
[344528420,1733536320042,-389.04525488,0.00011245,2]
[344528421,1733536320052,-1719.0,0.0001126,2]
[344528422,1733536320062,-1762.44390139,0.00011355,2]
[344528423,1733536320072,-840.52,0.00011355,2]
[344528424,1733536320082,-2929.3154387,0.00011369,2]
[344528425,1733536320092,-3925.86627846,0.00011404,2]
[344528426,1733536320103,-31668.5347713,0.00011404,2]
[344528427,1733536320113,-166.99,0.00011407,2]
[344528428,1733536320122,-1000.0,0.00011443,2]
[344528429,1733536320138,-389.04525488,0.00011463,2]
[344528430,1733536320148,-150.0,0.00011498,2]
[344528431,1733536320159,-150.0,0.00011498,2]
[344528432,1733536320169,-150.0,0.00011498,3]
[344528433,1733536320179,-150.0,0.00011498,3]
[344528434,1733536320189,-5564.0,0.000115,3]
[344528435,1733536320199,-165.8322395,0.00011502,2]
[344528436,1733536320209,-500.0,0.00011502,2]
[344528437,1733536320219,-506.32144487,0.00011502,2]
[344528438,1733536320231,-500.0,0.00011502,2]
[344528439,1733536320241,-500.0,0.00011502,2]
[344528440,1733536320252,-584.42,0.00011502,2]
[344528441,1733536320263,-500.0,0.00011503,2]
[344528442,1733536320273,-500.0,0.00011503,2]
[344528443,1733536320283,-500.0,0.00011503,2]
[344528444,1733536320293,-1237.14,0.00011503,2]
[344528445,1733536320303,-500.0,0.00011503,2]
[344528446,1733536320312,-500.0,0.00011503,2]
[344528447,1733536320388,-500.0,0.00011503,2]
[344528448,1733536320397,-578.46,0.00011503,2]
[344528449,1733536320407,-500.0,0.00011503,2]
[344528450,1733536320416,-500.0,0.00011503,2]
[344528451,1733536320426,-500.0,0.00011503,2]
[344528452,1733536320435,-1472.55,0.00011503,2]
[344528453,1733536320444,-500.0,0.00011503,2]
[344528454,1733536320453,-500.0,0.00011503,2]
[344528455,1733536320463,-500.0,0.00011503,2]
[344528456,1733536320472,-500.0,0.00011503,2]
[344528457,1733536320482,-500.0,0.00011503,2]
[344528458,1733536320493,-500.0,0.00011503,2]
[344528459,1733536320503,-500.0,0.00011503,2]
[344528460,1733536320512,-500.0,0.00011503,2]
[344528461,1733536320522,-1921.93,0.00011503,2]
[344528462,1733536320531,-6459.48,0.00011503,2]
[344528463,1733536320540,-665.33,0.00011503,2]
[344528464,1733536320550,-2738.63,0.00011503,2]
[344528465,1733536320560,-596.12154362,0.00011503,2]
[344528466,1733536320569,-2307.66,0.00011503,2]
[344528467,1733536320579,-500.0,0.00011503,2]
[344528468,1733536320587,-500.0,0.00011503,2]
[344528469,1733536320596,-659.29,0.00011503,2]
[344528470,1733536320606,-940.36,0.00011503,2]
[344528471,1733536320615,-500.0,0.00011503,2]
[344528472,1733536320624,-500.0,0.00011503,2]
[344528473,1733536320637,-1443.28,0.00011503,2]
[344528474,1733536320647,-509.51,0.00011503,2]
[344528475,1733536320656,-1435.98,0.00011503,2]
[344528476,1733536320666,-1025.19,0.00011503,2]
[344528477,1733536320675,-209.70219214,0.00011503,2]
[344528478,1733536320686,-747.69,0.00011503,2]
[344528479,1733536320695,-500.0,0.00011503,2]
[344528480,1733536320704,-500.0,0.00011503,2]
[344528481,1733536320714,-2814.44,0.00011503,2]
[344528482,1733536320723,-7132.51,0.00011503,2]
[344528483,1733536320732,-500.0,0.00011503,2]
[344528484,1733536320741,-500.0,0.00011503,2]
[344528485,1733536320751,-500.0,0.00011503,2]
[344528486,1733536320761,-500.0,0.00011503,2]
[344528487,1733536320770,-2554.24,0.00011503,2]
[344528488,1733536320779,-862.89,0.00011503,2]
[344528489,1733536320788,-500.0,0.00011503,2]
[344528490,1733536320797,-1419.95,0.00011503,2]
[344528491,1733536320806,-500.0,0.00011503,2]
[344528492,1733536320815,-824.51,0.00011503,2]
[344528493,1733536320825,-901.61,0.00011503,2]
[344528494,1733536320834,-1511.62,0.00011503,2]
[344528495,1733536320845,-500.0,0.00011503,2]
[344528496,1733536320855,-2377.17,0.00011503,2]
[344528497,1733536320864,-8848.27,0.00011503,2]
[344528498,1733536320874,-2208.06,0.00011503,2]
[344528499,1733536320887,-712.8,0.00011503,2]
[344528500,1733536320897,-500.0,0.00011503,2]
[344528501,1733536320906,-4591.69,0.00011503,2]
[344528502,1733536320916,-2710.3,0.00011503,2]
[344528503,1733536320926,-500.0,0.00011503,2]
[344528504,1733536320935,-500.0,0.00011503,2]
[344528505,1733536320944,-676.57,0.00011503,2]
[344528506,1733536320953,-1680.28,0.00011503,2]
[344528507,1733536320963,-500.0,0.00011503,2]
[344528508,1733536320972,-500.0,0.00011503,2]
[344528509,1733536320981,-1432.11,0.00011503,2]
[344528510,1733536320990,-500.0,0.00011503,2]
[344528511,1733536320999,-4646.7,0.00011503,2]
[344528512,1733536321009,-15013.49,0.00011503,2]
[344528513,1733536321020,-564.83,0.00011503,2]
[344528514,1733536321030,-4871.52,0.00011503,2]
[344528515,1733536321040,-772.76,0.00011503,2]
[344528516,1733536321049,-500.0,0.00011503,2]
[344528517,1733536321060,-815.03,0.00011503,2]
[344528518,1733536321072,-2380.55,0.00011503,2]
[344528519,1733536321081,-1815.68,0.00011503,2]
[344528520,1733536321091,-500.0,0.00011503,2]
[344528521,1733536321102,-500.0,0.00011503,2]
[344528522,1733536321111,-2128.7,0.00011503,2]
[344528523,1733536321120,-1530.78,0.00011503,2]
[344528524,1733536321135,-627.46096818,0.00011503,2]
[344528525,1733536321144,-16965.0,0.00011503,2]
[344528526,1733536321154,-1604.96,0.00011503,2]
[344528527,1733536321164,-500.0,0.00011503,2]
[344528528,1733536321173,-500.0,0.00011503,2]
[344528529,1733536321183,-619.51,0.00011503,2]
[344528530,1733536321192,-500.0,0.00011503,2]
[344528531,1733536321201,-1502.86,0.00011503,2]
[344528532,1733536321210,-7902.9,0.00011503,2]
[344528533,1733536321219,-500.0,0.00011503,2]
[344528534,1733536321229,-500.0,0.00011503,2]
[344528535,1733536321238,-1008.12,0.00011503,2]
[344528536,1733536321247,-502.28,0.00011503,2]
[344528537,1733536321257,-500.0,0.00011503,2]
[344528538,1733536321266,-500.0,0.00011503,2]
[344528539,1733536321275,-979.79,0.00011503,2]
[344528540,1733536321284,-944.37,0.00011503,2]
[344528541,1733536321293,-653.04,0.00011503,2]
[344528542,1733536321302,-500.0,0.00011503,2]
[344528543,1733536321312,-1333.83,0.00011503,2]
[344528544,1733536321322,-500.0,0.00011503,2]
[344528545,1733536321332,-500.0,0.00011503,2]
[344528546,1733536321342,-707.74,0.00011503,2]
[344528547,1733536321351,-500.0,0.00011503,2]
[344528548,1733536321361,-500.0,0.00011503,2]
[344528549,1733536321370,-500.0,0.00011503,2]
[344528550,1733536321384,-1395.45,0.00011503,2]
[344528551,1733536321394,-1391.91,0.00011503,2]
[344528552,1733536321403,-500.0,0.00011503,2]
[344528553,1733536321413,-500.0,0.00011503,2]
[344528554,1733536321422,-947.41,0.00011503,2]
[344528555,1733536321432,-500.0,0.00011503,2]
[344528556,1733536321441,-1361.4,0.00011503,2]
[344528557,1733536321450,-317.43454453,0.00011503,2]
[344528558,1733536321459,-500.0,0.00011503,2]
[344528559,1733536321468,-2140.86,0.00011503,2]
[344528560,1733536321477,-1620.87,0.00011503,2]
[344528561,1733536321487,-500.0,0.00011503,2]
[344528562,1733536321496,-500.0,0.00011503,2]
[344528563,1733536321506,-500.0,0.00011503,2]
[344528564,1733536321515,-500.0,0.00011503,2]
[344528565,1733536321525,-500.0,0.00011503,2]
[344528566,1733536321534,-500.0,0.00011503,2]
[344528567,1733536321543,-500.0,0.00011504,2]
[344528568,1733536321552,-500.0,0.00011504,2]
[344528569,1733536321561,-500.0,0.00011504,2]
[344528570,1733536321571,-500.0,0.00011504,2]
[344528571,1733536321580,-500.0,0.00011504,2]
[344528572,1733536321589,-1973.59,0.00011504,2]
[344528573,1733536321600,-919.96,0.00011504,2]
[344528574,1733536321610,-500.0,0.00011504,2]
[344528575,1733536321619,-2028.99,0.00011504,2]
[344528576,1733536321632,-500.0,0.00011504,2]
[344528577,1733536321646,-1957.15,0.00011504,2]
[344528578,1733536321656,-500.0,0.00011504,2]
[344528579,1733536321665,-500.0,0.00011504,2]
[344528580,1733536321675,-1074.67,0.00011504,2]
[344528581,1733536321684,-500.0,0.00011504,2]
[344528582,1733536321693,-462.77777535,0.00011504,2]
[344528583,1733536321703,-1596.59,0.00011504,2]
[344528584,1733536321712,-500.0,0.00011504,2]
[344528585,1733536321721,-500.0,0.00011504,2]
[344528586,1733536321731,-500.0,0.00011504,2]
[344528587,1733536321741,-534.65,0.00011504,2]
[344528588,1733536321751,-500.0,0.00011504,2]
[344528589,1733536321761,-500.0,0.00011504,2]
[344528590,1733536321777,-1462.96,0.00011504,2]
[344528591,1733536321787,-500.0,0.00011504,2]
[344528592,1733536321798,-1361.04,0.00011504,2]
[344528593,1733536321807,-500.0,0.00011504,2]
[344528594,1733536321818,-500.0,0.00011504,2]
[344528595,1733536321827,-500.0,0.00011504,2]
[344528596,1733536321837,-500.0,0.00011504,2]
[344528597,1733536321847,-500.0,0.00011504,2]
[344528598,1733536321857,-500.0,0.00011504,2]
[344528599,1733536321867,-854.27,0.00011504,2]
[344528600,1733536321883,-500.0,0.00011504,2]
[344528601,1733536321895,-500.0,0.00011504,2]
[344528602,1733536321905,-500.0,0.00011504,2]
[344528603,1733536321915,-952.41,0.00011504,2]
[344528604,1733536321925,-500.0,0.00011504,2]
[344528605,1733536321934,-500.0,0.00011504,2]
[344528606,1733536321944,-300.38975521,0.00011504,2]
[344528607,1733536321954,-1923.16,0.00011504,2]
[344528608,1733536321963,-1220.83,0.00011504,2]
[344528609,1733536321973,-500.0,0.00011504,2]
[344528610,1733536321984,-500.0,0.00011504,2]
[344528611,1733536321993,-1173.25,0.00011504,2]
[344528612,1733536322003,-500.0,0.00011504,2]
[344528613,1733536322012,-500.0,0.00011504,2]
[344528614,1733536322026,-500.0,0.00011504,2]
[344528615,1733536322036,-500.0,0.00011504,2]
[344528616,1733536322046,-1427.49,0.00011504,2]
[344528617,1733536322055,-500.0,0.00011504,2]
[344528618,1733536322069,-1132.29,0.00011504,2]
[344528619,1733536322078,-379.28964008,0.00011504,2]
[344528620,1733536322088,-500.0,0.00011504,2]
[344528621,1733536322099,-1988.24,0.00011504,2]
[344528622,1733536322108,-2268.55,0.00011504,2]
[344528623,1733536322118,-500.0,0.00011504,2]
[344528624,1733536322129,-500.0,0.00011504,2]
[344528625,1733536322139,-1649.72,0.00011504,2]
[344528626,1733536322148,-500.0,0.00011504,2]
[344528627,1733536322157,-838.85,0.00011504,2]
[344528628,1733536322168,-1204.84,0.00011504,2]
[344528629,1733536322177,-500.0,0.00011504,2]
[344528630,1733536322187,-1419.07,0.00011504,2]
[344528631,1733536322196,-672.22,0.00011504,2]
[344528632,1733536322206,-500.0,0.00011504,2]
[344528633,1733536322217,-500.0,0.00011504,2]
[344528634,1733536322227,-500.0,0.00011504,2]
[344528635,1733536322236,-1429.7,0.00011504,2]
[344528636,1733536322246,-500.0,0.00011504,2]
[344528637,1733536322255,-1164.95,0.00011504,2]
[344528638,1733536322264,-500.0,0.00011504,2]
[344528639,1733536322273,-1139.75,0.00011504,2]
[344528640,1733536322282,-500.0,0.00011504,2]
[344528641,1733536322291,-500.0,0.00011504,2]
[344528642,1733536322300,-500.0,0.00011504,2]
[344528643,1733536322308,-500.0,0.00011504,2]
[344528644,1733536322318,-874.05,0.00011504,2]
[344528645,1733536322327,-788.76,0.00011504,2]
[344528646,1733536322336,-500.0,0.00011504,2]
[344528647,1733536322345,-500.0,0.00011504,2]
[344528648,1733536322355,-500.0,0.00011504,2]
[344528649,1733536322364,-500.0,0.00011504,2]
[344528650,1733536322374,-2270.59,0.00011504,2]
[344528651,1733536322387,-500.0,0.00011504,2]
[344528652,1733536322396,-821.23,0.00011504,2]
[344528653,1733536322405,-2289.09,0.00011504,2]
[344528654,1733536322415,-500.0,0.00011504,2]
[344528655,1733536322424,-1579.83,0.00011504,2]
[344528656,1733536322433,-500.0,0.00011504,2]
[344528657,1733536322443,-500.0,0.00011504,2]
[344528658,1733536322452,-500.0,0.00011504,2]
[344528659,1733536322462,-693.82,0.00011504,2]
[344528660,1733536322472,-1496.96,0.00011504,2]
[344528661,1733536322482,-500.0,0.00011504,2]
[344528662,1733536322491,-1337.46,0.00011504,2]
[344528663,1733536322500,-1067.55,0.00011504,2]
[344528664,1733536322510,-500.0,0.00011504,2]
[344528665,1733536322519,-909.31,0.00011504,2]
[344528666,1733536322528,-500.0,0.00011504,2]
[344528667,1733536322537,-1306.23,0.00011504,2]
[344528668,1733536322546,-240.26229361,0.00011504,2]
[344528669,1733536322555,-500.0,0.00011504,2]
[344528670,1733536322564,-4172.15,0.00011504,2]
[344528671,1733536322573,-500.0,0.00011504,2]
[344528672,1733536322583,-3682.15,0.00011504,2]
[344528673,1733536322592,-500.0,0.00011504,2]
[344528674,1733536322602,-2451.74,0.00011504,2]
[344528675,1733536322611,-500.0,0.00011504,2]
[344528676,1733536322620,-1388.88,0.00011504,2]
[344528677,1733536322632,-500.0,0.00011504,2]
[344528678,1733536322641,-873.88,0.00011504,2]
[344528679,1733536322650,-807.12,0.00011504,2]
[344528680,1733536322659,-500.0,0.00011504,2]
[344528681,1733536322669,-12615.43,0.00011504,2]
[344528682,1733536322679,-531.19,0.00011504,2]
[344528683,1733536322688,-1534.76,0.00011504,2]
[344528684,1733536322697,-1375.96,0.00011504,2]
[344528685,1733536322706,-3418.5,0.00011504,2]
[344528686,1733536322715,-3762.16,0.00011504,2]
[344528687,1733536322724,-1672.75,0.00011504,2]
[344528688,1733536322733,-1386.08,0.00011504,2]
[344528689,1733536322742,-500.0,0.00011504,2]
[344528690,1733536322751,-5487.01,0.00011504,2]
[344528691,1733536322760,-592.1144469,0.00011504,2]
[344528692,1733536322770,-1319.83,0.00011504,2]
[344528693,1733536322779,-1615.88,0.00011504,2]
[344528694,1733536322787,-500.0,0.00011504,2]
[344528695,1733536322797,-3508.25,0.00011504,2]
[344528696,1733536322806,-1212.79,0.00011504,2]
[344528697,1733536322815,-500.0,0.00011504,2]
[344528698,1733536322824,-3134.44,0.00011504,2]
[344528699,1733536322834,-500.0,0.00011504,2]
[344528700,1733536322845,-1417.37,0.00011504,2]
[344528701,1733536322854,-2607.01,0.00011504,2]
[344528702,1733536322863,-500.0,0.00011504,2]
[344528703,1733536322872,-2314.85,0.00011504,2]
[344528704,1733536322884,-500.0,0.00011504,2]
[344528705,1733536322894,-1066.22,0.00011504,2]
[344528706,1733536322903,-1855.42,0.00011504,2]
[344528707,1733536322912,-3863.17,0.00011504,2]
[344528708,1733536322921,-2316.43,0.00011504,2]
[344528709,1733536322931,-1758.84,0.00011504,2]
[344528710,1733536322940,-251.17865624,0.00011504,2]
[344528711,1733536322949,-500.0,0.00011504,2]
[344528712,1733536322959,-500.0,0.00011504,2]
[344528713,1733536322968,-513.82,0.00011504,2]
[344528714,1733536322977,-500.0,0.00011504,2]
[344528715,1733536322987,-904.08,0.00011504,2]
[344528716,1733536322995,-500.0,0.00011504,2]
[344528717,1733536323005,-2971.06,0.00011504,2]
[344528718,1733536323016,-607.67,0.00011504,2]
[344528719,1733536323027,-908.45,0.00011504,2]
[344528720,1733536323036,-500.0,0.00011504,2]
[344528721,1733536323046,-2730.04,0.00011504,2]
[344528722,1733536323057,-601.7,0.00011504,2]
[344528723,1733536323067,-1655.05,0.00011504,2]
[344528724,1733536323077,-1390.17,0.00011504,2]
[344528725,1733536323087,-1410.09,0.00011504,2]
[344528726,1733536323098,-1232.19,0.00011504,2]
[344528727,1733536323108,-427.93892509,0.00011504,2]
[344528728,1733536323117,-668.26,0.00011504,2]
[344528729,1733536323130,-1273.21,0.00011504,2]
[344528730,1733536323140,-500.0,0.00011504,2]
[344528731,1733536323150,-500.0,0.00011504,2]
[344528732,1733536323160,-3636.84,0.00011504,2]
[344528733,1733536323170,-2436.97,0.00011504,2]
[344528734,1733536323180,-500.0,0.00011504,2]
[344528735,1733536323190,-500.0,0.00011505,2]
[344528736,1733536323200,-500.0,0.00011505,2]
[344528737,1733536323210,-191.87771568,0.00011505,2]
[344528738,1733536323220,-500.0,0.00011505,2]
[344528739,1733536323230,-500.0,0.00011505,2]
[344528740,1733536323240,-470.21061944,0.00011505,2]
[344528741,1733536323250,-500.0,0.00011505,2]
[344528742,1733536323259,-500.0,0.00011505,2]
[344528743,1733536323269,-1010.16,0.00011505,2]
[344528744,1733536323279,-500.0,0.00011505,2]
[344528745,1733536323288,-500.0,0.00011505,2]
[344528746,1733536323298,-500.0,0.00011505,2]
[344528747,1733536323307,-500.0,0.00011505,2]
[344528748,1733536323316,-500.0,0.00011505,2]
[344528749,1733536323326,-500.0,0.00011505,2]
[344528750,1733536323336,-500.0,0.00011505,2]
[344528751,1733536323346,-605.55,0.00011505,2]
[344528752,1733536323356,-500.0,0.00011505,2]
[344528753,1733536323365,-500.0,0.00011505,2]
[344528754,1733536323374,-500.0,0.00011505,2]
[344528755,1733536323386,-500.0,0.00011505,2]
[344528756,1733536323396,-500.0,0.00011505,2]
[344528757,1733536323405,-500.0,0.00011505,2]
[344528758,1733536323414,-500.0,0.00011505,2]
[344528759,1733536323424,-500.0,0.00011505,2]
[344528760,1733536323434,-500.0,0.00011505,2]
[344528761,1733536323443,-500.0,0.00011505,2]
[344528762,1733536323452,-500.0,0.00011505,2]
[344528763,1733536323462,-500.0,0.00011505,2]
[344528764,1733536323471,-500.0,0.00011505,2]
[344528765,1733536323480,-500.0,0.00011505,2]
[344528766,1733536323489,-500.0,0.00011505,2]
[344528767,1733536323498,-500.0,0.00011505,2]
[344528768,1733536323508,-500.0,0.00011505,2]
[344528769,1733536323517,-1189.5,0.00011505,2]
[344528770,1733536323527,-500.0,0.00011505,2]
[344528771,1733536323536,-500.0,0.00011505,2]
[344528772,1733536323546,-500.0,0.00011505,2]
[344528773,1733536323555,-691.44,0.00011505,2]
[344528774,1733536323564,-500.0,0.00011505,2]
[344528775,1733536323574,-593.21,0.00011505,2]
[344528776,1733536323584,-500.0,0.00011505,2]
[344528777,1733536323594,-500.0,0.00011505,2]
[344528778,1733536323604,-500.0,0.00011505,2]
[344528779,1733536323614,-575.21,0.00011505,2]
[344528780,1733536323623,-760.02,0.00011505,2]
[344528781,1733536323633,-997.85,0.00011505,2]
[344528782,1733536323643,-500.0,0.00011505,2]
[344528783,1733536323653,-500.0,0.00011505,2]
[344528784,1733536323662,-569.15,0.00011505,2]
[344528785,1733536323672,-1576.42,0.00011505,2]
[344528786,1733536323681,-968.36,0.00011505,2]
[344528787,1733536323691,-649.06,0.00011505,2]
[344528788,1733536323701,-1164.89,0.00011505,2]
[344528789,1733536323711,-500.0,0.00011505,2]
[344528790,1733536323722,-500.0,0.00011505,2]
[344528791,1733536323731,-500.0,0.00011505,2]
[344528792,1733536323741,-500.0,0.00011505,2]
[344528793,1733536323750,-469.49432401,0.00011505,2]
[344528794,1733536323760,-1156.26,0.00011505,2]
[344528795,1733536323770,-500.0,0.00011505,2]
[344528796,1733536323779,-602.11,0.00011505,2]
[344528797,1733536323789,-500.0,0.00011505,2]
[344528798,1733536323798,-500.0,0.00011505,2]
[344528799,1733536323808,-500.0,0.00011505,2]
[344528800,1733536323817,-1076.61,0.00011505,2]
[344528801,1733536323826,-973.36,0.00011505,2]
[344528802,1733536323836,-500.0,0.00011505,2]
[344528803,1733536323847,-500.0,0.00011505,2]
[344528804,1733536323856,-700.55,0.00011505,2]
[344528805,1733536323866,-667.19,0.00011505,2]
[344528806,1733536323876,-500.0,0.00011505,2]
[344528807,1733536323889,-920.45,0.00011505,2]
[344528808,1733536323900,-500.0,0.00011505,2]
[344528809,1733536323910,-1231.3,0.00011505,2]
[344528810,1733536323920,-901.24,0.00011505,2]
[344528811,1733536323930,-2088.05,0.00011505,2]
[344528812,1733536323940,-600.34,0.00011505,2]
[344528813,1733536323950,-993.78,0.00011505,2]
[344528814,1733536323960,-1450.85,0.00011505,2]
[344528815,1733536323970,-573.52,0.00011505,2]
[344528816,1733536323979,-1382.36,0.00011505,2]
[344528817,1733536323989,-516.23,0.00011505,2]
[344528818,1733536323999,-1010.6,0.00011505,2]
[344528819,1733536324009,-500.0,0.00011505,2]
[344528820,1733536324024,-500.0,0.00011505,2]
[344528821,1733536324034,-1088.16,0.00011505,2]
[344528822,1733536324044,-583.14,0.00011505,2]
[344528823,1733536324054,-500.0,0.00011505,2]
[344528824,1733536324065,-500.0,0.00011505,2]